Workbook

Sheet 1 неделя
A1: 1 неделя | B1: Выход, гр | C1: Цена, 1 кг | D1: Цена в блюде
A2: Понедельник
A3: Помидоры свежие | B3: 60
A4: Помидоры | B4: 61.6 | C4: 100 | D4: =C4/1000*B4 -> 6.16
A5: Котлеты | B5: 80
A6: Говядина (котлетное мясо) | B6: 72 | C6: 440 | D6: =C6/1000*B6 -> 31.68
A7: Хлеб пшенинчый | B7: 9 | C7: 60 | D7: 0.54
A8: Молоко | B8: 12 | C8: 62 | D8: 0.744
A9: Сухари панировочные | B9: 5 | C9: 100 | D9: 0.5
A10: Масло растительное | B10: 3 | C10: 140 | D10: 0.42
A11: Масло сливочное | B11: 5 | C11: 530 | D11: 2.65
A12: Соль | B12: 1 | C12: 16 | D12: 0.016
A13: Каша вязска гречневая | B13: 150/5
A14: Гречка | B14: 150 | C14: 100 | D14: 15
A15: Масло сливочное | B15: 5 | C15: 530 | D15: 2.65
A16: Соль | B16: 1 | C16: 16 | D16: 0.016
A17: Какао с молоком | B17: 200
A18: Какао порошок | B18: 4 | C18: 271 | D18: 1.084
A19: Сахар | B19: 20 | C19: 80 | D19: 1.6
A20: Молоко | B20: 100 | C20: 62 | D20: 6.2
A21: Вода | B21: 110
A22: Хлеб пшеничный | B22: 30 | C22: 60 | D22: 1.8
A23: Хлеб ржано-пшеничный | B23: 20 | C23: 51 | D23: 1.02
A24: Стоимость понедельник | D24: =SUM(D4:D23) -> 72.08
A25: Вторник
A26: Фрукты (яблоки) | B26: 100
A27: Яблоки | B27: 100 | C27: 90 | D27: =C27/1000*B27 -> 9
A28: Огурцы свежие (порциями) | B28: 60
A29: Огурцы свежие | B29: 61.6 | C29: 80 | D29: =C29/1000*B29 -> 4.928
A30: Рагу из птицы | B30: 50/150
A31: Грудки куриные | B31: 72.00 | C31: 245 | D31: 17.64
A32: Картофель свежий | B32: 178.00 | C32: 25 | D32: 4.45
A33: Лук репчатый | B33: 11.90 | C33: 30 | D33: 0.357
A34: Томатная паста | B34: 2.00 | C34: 175 | D34: 0.35
A35: Масло растительное | B35: 4.00 | C35: 140 | D35: 0.56
A36: Соль | B36: 2.00 | C36: 16 | D36: 0.032
A37: Лавровый лист | B37: 0.01 | C37: 960 | D37: 0.0096
A38: Морковь свежая | B38: 13.30 | C38: 35 | D38: 0.4655
A39: Кофейный напиток с молоком | B39: 200
A40: Кофейный напиток | B40: 5 | C40: 500 | D40: 2.5
A41: Сахар | B41: 20 | C41: 80 | D41: 1.6
A42: Молоко | B42: 100 | C42: 62 | D42: 6.2
A43: Вода | B43: 120
A44: Хлеб пшеничный | B44: 30 | C44: 60 | D44: 1.8
A45: Хлеб ржано-пшеничный | B45: 20 | C45: 51 | D45: 1.02
A46: Стоимость вторник | D46: =SUM(D27:D45) -> 50.9121
A47: Среда
A48: Салат из белокачанной капусты | B48: 60
A49: Капуста свежая | B49: 60 | C49: 25 | D49: =C49/1000*B49 -> 1.5
A50: Морковь свежая | B50: 8 | C50: 35 | D50: =C50/1000*B50 -> 0.2793
A51: Сахарный песок | B51: 3 | C51: 80 | D51: 0.24
A52: Соль | B52: 0.3 | C52: 16 | D52: 0.0048
A53: Масло растительное | B53: 3 | C53: 140 | D53: 0.42
A54: Лимонная кислота | B54: 0.2 | C54: 312 | D54: =C54/1000*B54 -> 0.05616
A55: Гуляш из говядины | B55: 50/50
A56: Говядина (лопаточный отруб) | B56: 81.00 | C56: 440 | D56: 35.64
A57: Масло растительное | B57: 5.00 | C57: 140 | D57: 0.7
A58: Лук репчатый | B58: 11.90 | C58: 30 | D58: 0.357
A59: Томатная паста | B59: 3.20 | C59: 175 | D59: 0.56
A60: Мука пшеничная | B60: 2.00 | C60: 40 | D60: 0.08
A61: Соль | B61: 1.00 | C61: 16 | D61: 0.016
A62: Лавровый лист | B62: 0.01 | C62: 960 | D62: 0.0096
A63: Макаронные изделия отварные | B63: 150
A64: Макаронные изделия | B64: 53 | C64: 50 | D64: 2.65
A65: Масло сливочное | B65: 5 | C65: 530 | D65: 2.65
A66: Соль | B66: 1 | C66: 16 | D66: 0.016
A67: Чай с сахаром | B67: 200/15
A68: Чай | B68: 1 | C68: 688 | D68: 0.688
A69: Сахар | B69: 15 | C69: 80 | D69: 1.2
A70: Вода | B70: 150 | D70: 0
A71: Хлеб пшеничный | B71: 30 | C71: 60 | D71: 1.8
A72: Хлеб ржано-пшеничный | B72: 20 | C72: 51 | D72: 1.02
A73: Стоимость среда | D73: =SUM(D49:D72) -> 49.88686
A74: Четверг
A75: Фрукты (груши) | B75: 100
A76: Груши | B76: 100 | C76: 140 | D76: =C76/1000*B76 -> 14
A77: Салат из моркови | B77: 60
A78: Морковь свежая | B78: 65 | C78: 35 | D78: =C78/1000*B78 -> 2.275
A79: Масло растительное | B79: 6 | C79: 140 | D79: 0.84
A80: Сахарный песок | B80: 6 | C80: 80 | D80: 0.48
A81: Котлеты рыбные | B81: 80
A82: Филе минтая | B82: 79 | C82: 280 | D82: 22.12
A83: Яйцо 1 кат. | B83: 0.2 | C83: 7 | D83: =C83*B83 -> 1.4
A84: Сухари панировочные | B84: 7 | C84: 100 | D84: 0.7
A85: Вода | B85: 8 | D85: 0
A86: Молоко | B86: 5 | C86: 62 | D86: 0.31
A87: Лук репчатый очищенный | B87: 3 | C87: 30 | D87: 0.09
A88: Соль | B88: 1 | C88: 16 | D88: 0.016
A89: Масло растительное | B89: 2.00 | C89: 140 | D89: 0.28
A90: Пюре картофельное | B90: 150
A91: Картофель | B91: 170 | C91: 25 | D91: 4.25
A92: Молоко | B92: 24 | C92: 62 | D92: 1.488
A93: Масло сливочное | B93: 5 | C93: 530 | D93: 2.65
A94: Соль | B94: 1 | C94: 16 | D94: 0.016
A95: Какао с молоком | B95: 200
A96: Какао порошок | B96: 4 | C96: 271 | D96: 1.084
A97: Сахар | B97: 20 | C97: 80 | D97: 1.6
A98: Молоко | B98: 100 | C98: 62 | D98: 6.2
A99: Вода | B99: 110 | D99: 0
A100: Хлеб пшеничный | B100: 30 | C100: 60 | D100: 1.8
A101: Хлеб ржано-пшеничный | B101: 20 | C101: 51 | D101: 1.02
A102: Стоимость четверг | D102: =SUM(D76:D101) -> 62.619
A103: Пятница
A104: Фрукты (яблоки) | B104: 100
A105: Яблоки | B105: 100 | C105: 90 | D105: =C105/1000*B105 -> 9
A106: Помидоры свежие | B106: 60
A107: Помидоры | B107: 61.6 | C107: 100 | D107: =C107/1000*B107 -> 6.16
A108: Котлеты рубленные из птицы | B108: 80
A109: Грудки куриные | B109: 77 | C109: 245 | D109: 18.865
A110: Хлеб пшеничный | B110: 13 | C110: 60 | D110: 0.78
A111: Молоко | B111: 19 | C111: 62 | D111: 1.178
A112: Сухари | B112: 5 | C112: 100 | D112: 0.5
A113: Масло ратистельное | B113: 3 | C113: 140 | D113: 0.42
A114: Масло сливочное | B114: 5 | C114: 530 | D114: 2.65
A115: Соль | B115: 1 | C115: 16 | D115: 0.016
A116: Рис отварной | B116: 150
A117: Рис | B117: 55 | C117: 75 | D117: 4.125
A118: Масло сливочное | B118: 7 | C118: 530 | D118: 3.71
A119: Соль | B119: 1 | C119: 16 | D119: 0.016
A120: Чай с лимоном | B120: 200/15/7
A121: Чай | B121: 1 | C121: 688 | D121: 0.688
A122: Сахар | B122: 15 | C122: 80 | D122: 1.2
A123: Лимон | B123: 8 | C123: 150 | D123: 1.2
A124: Вода | B124: 150 | D124: 0
A125: Хлеб пшеничный | B125: 30 | C125: 60 | D125: 1.8
A126: Хлеб ржано-пшеничный | B126: 20 | C126: 51 | D126: 1.02
A127: Стоимость пятница | D127: =SUM(D105:D126) -> 53.328
A128: Суббота
A129: Фрукты (мандарин) | B129: 100
A130: Мандарин | B130: 100 | C130: 110 | D130: =C130/1000*B130 -> 11
A131: Салат из свежих огурцов с маслом | B131: 60
A132: Огурцы свежие | B132: 58.14 | C132: 80 | D132: =C132/1000*B132 -> 4.6512
A133: Масло растительное | B133: 3.60 | C133: 140 | D133: 0.504
A134: Говядина тушеная | B134: 60/30
A135: Говядина | B135: 83 | C135: 440 | D135: 36.52
A136: Морковь свежая | B136: 5 | C136: 35 | D136: 0.175
A137: Лук | B137: 5 | C137: 30 | D137: 0.15
A138: Масло растительное | B138: 5 | C138: 140 | D138: 0.7
A139: Томатная паста | B139: 7 | C139: 175 | D139: 1.225
A140: Мука пшеничная | B140: 2 | C140: 40 | D140: 0.08
A141: Соль | B141: 1 | C141: 16 | D141: 0.016
A142: Макаронные изделия отварные | B142: 150
A143: Макаронные изделия | B143: 53 | C143: 50 | D143: =C143/1000*B143 -> 2.65
A144: Масло сливочное | B144: 5 | C144: 530 | D144: 2.65
A145: Соль | B145: 1 | C145: 16 | D145: 0.016
A146: Чай с сахаром | B146: 200/15
A147: Чай | B147: 1 | C147: 688 | D147: 0.688
A148: Сахар | B148: 15 | C148: 80 | D148: 1.2
A149: Вода | B149: 150 | D149: 0
A150: Хлеб пшеничный | B150: 30 | C150: 60 | D150: 1.8
A151: Хлеб ржано-пшеничный | B151: 20 | C151: 51 | D151: 1.02
A152: Стоимость суббота | D152: =SUM(D130:D151) -> 65.0452

Sheet 2 неделя
A1: 2 неделя | B1: Выход, гр | C1: Цена, 1 кг | D1: Цена в блюде
A2: Понедельник
A3: Фрукты (мандарины) | B3: 150
A4: Мандарин | B4: 150 | C4: 110 | D4: =C4/1000*B4 -> 16.5
A5: Огурцы свежие (порциями) | B5: 60 | D5: =C5/1000*B5 -> 0
A6: Огурцы свежие | B6: 61.6 | C6: 80 | D6: 4.928
A7: Говядина тушеная | B7: 50/50 | D7: 0
A8: Говядина (лопаточный отруб) | B8: 83 | C8: 440 | D8: 36.52
A9: Морковь | B9: 5 | C9: 35 | D9: 0.175
A10: Лук репчатый | B10: 5 | C10: 30 | D10: 0.15
A11: Масло растительное | B11: 5 | C11: 140 | D11: 0.7
A12: Томатная паста | B12: 7 | C12: 175 | D12: 1.225
A13: Мука пшеничная | B13: 2 | C13: 40 | D13: 0.08
A14: Соль | B14: 1 | C14: 16 | D14: 0.016
A15: Каша рассыпчатая (гречневая) | B15: 150 | D15: 0
A16: Гречка | B16: 71 | C16: 100 | D16: 7.1
A17: Соль | B17: 1 | C17: 16 | D17: 0.016
A18: Какао с молоком | B18: 200 | D18: 0
A19: Какао порошок | B19: 4 | C19: 271 | D19: 1.084
A20: Сахар | B20: 20 | C20: 80 | D20: 1.6
A21: Молоко | B21: 100 | C21: 62 | D21: 6.2
A22: Вода | B22: 110 | D22: 0
A23: Хлеб пшеничный | B23: 30 | C23: 60 | D23: 1.8
A24: Хлеб ржано-пшеничный | B24: 20 | C24: 51 | D24: 1.02
A25: Стоимость понедельник | D25: =SUM(D4:D24) -> 79.114
A26: Вторник
A27: Помидоры свежие | B27: 60
A28: Помидоры | B28: 61.6 | C28: 100 | D28: =C28/1000*B28 -> 6.16
A29: Плов из птицы | B29: 50/150
A30: Грудка куриная | B30: 68 | C30: 245 | D30: =C30/1000*B30 -> 16.66
A31: Масло растительное | B31: 7 | C31: 140 | D31: 0.98
A32: Лук репчатый | B32: 8 | C32: 30 | D32: 0.24
A33: Морковь | B33: 10 | C33: 35 | D33: 0.35
A34: Томатная паста | B34: 5 | C34: 132 | D34: 0.66
A35: Рис | B35: 35 | C35: 75 | D35: 2.625
A36: Соль | B36: 1 | C36: 16 | D36: 0.016
A37: Чай с лимоном | B37: 200/15/7
A38: Чай | B38: 1 | C38: 688 | D38: 0.688
A39: Сахар | B39: 15 | C39: 80 | D39: 1.2
A40: Лимон | B40: 8 | C40: 150 | D40: 1.2
A41: Вода | B41: 150 | D41: 0
A42: Хлеб пшеничный | B42: 30 | C42: 60 | D42: 1.8
A43: Хлеб ржано-пшеничный | B43: 20 | C43: 51 | D43: 1.02
A44: Стоимость вторник | D44: =SUM(D28:D43) -> 33.599
A45: Среда
A46: Салат из белокачанной капусты | B46: 60
A47: Капуста свежая | B47: 60 | C47: 25 | D47: =C47/1000*B47 -> 1.5
A48: Морковь свежая | B48: 8 | C48: 35 | D48: =C48/1000*B48 -> 0.2793
A49: Сахарный песок | B49: 3 | C49: 80 | D49: 0.24
A50: Соль | B50: 0.3 | C50: 16 | D50: 0.0048
A51: Масло растительное | B51: 3 | C51: 140 | D51: 0.42
A52: Лимонная кислота | B52: 0.2 | C52: 312 | D52: 0.05616
A53: Биточки рыбные | B53: 80
A54: Филе минтая | B54: 79 | C54: 280 | D54: 22.12
A55: Яйцо 1 кат., шт | B55: 0.2 | C55: 7 | D55: =C55*B55 -> 1.4
A56: Сухари панировочные | B56: 7 | C56: 100 | D56: 0.7
A57: Вода | B57: 8 | D57: 0
A58: Молоко | B58: 13 | C58: 62 | D58: 0.806
A59: Лук репчатый очищенный | B59: 3 | C59: 30 | D59: 0.09
A60: Соль | B60: 1 | C60: 16 | D60: 0.016
A61: Масло растительное | B61: 2 | C61: 140 | D61: 0.28
A62: Пюре картофельное | B62: 150
A63: Картофель | B63: 170 | C63: 25 | D63: 4.25
A64: Молоко | B64: 24 | C64: 62 | D64: 1.488
A65: Масло сливочное | B65: 5 | C65: 530 | D65: 2.65
A66: Соль | B66: 1 | C66: 16 | D66: 0.016
A67: Чай с сахаром | B67: 200/15
A68: Чай | B68: 1 | C68: 688 | D68: 0.688
A69: Сахар | B69: 15 | C69: 80 | D69: 1.2
A70: Вода | B70: 150 | D70: 0
A71: Хлеб пшеничный | B71: 30 | C71: 60 | D71: 1.8
A72: Хлеб ржано-пшеничный | B72: 20 | C72: 51 | D72: 1.02
A73: Стоимость среда | D73: =SUM(D47:D72) -> 41.02426
A74: Четверг
A75: Салат из моркови | B75: 60
A76: Морковь свежая | B76: 65 | C76: 35 | D76: =C76/1000*B76 -> 2.275
A77: Масло растительное | B77: 6 | C77: 140 | D77: =C77/1000*B77 -> 0.84
A78: Сахарный песок | B78: 6 | C78: 80 | D78: 0.48
A79: Птица тушеная в соусе | B79: 50/50
A80: Грудки куриные | B80: 71 | C80: 245 | D80: =C80/1000*B80 -> 17.395
A81: Масло растительное | B81: 2 | C81: 140 | D81: 0.28
A82: Сметана | B82: 12.5 | C82: 170 | D82: 2.125
A83: Мука пшеничная | B83: 4 | C83: 40 | D83: 0.16
A84: Вода или отвар | B84: 38
A85: Макаронные изделия отварные с маслом | B85: 150/5
A86: Макаронные изделия | B86: 53 | C86: 50 | D86: 2.65
A87: Масло сливочное | B87: 5 | C87: 530 | D87: 2.65
A88: Соль | B88: 1 | C88: 16 | D88: 0.016
A89: Кофейный напиток с молоком | B89: 200
A90: Кофейный напиток | B90: 5 | C90: 500 | D90: 2.5
A91: Сахар | B91: 20 | C91: 80 | D91: 1.6
A92: Молоко | B92: 100 | C92: 62 | D92: 6.2
A93: Вода | B93: 120 | D93: 0
A94: Хлеб пшеничный | B94: 30 | C94: 60 | D94: 1.8
A95: Хлеб ржано-пшеничный | B95: 20 | C95: 51 | D95: 1.02
A96: Стоимость четверг | D96: =SUM(D76:D95) -> 41.991
A97: Пятница
A98: Фрукты (бананы) | B98: 150
A99: Бананы | B99: 150 | C99: 95 | D99: =C99/1000*B99 -> 14.25
A100: Свекла отварная дольками с маслом | B100: 60
A101: Свекла | B101: 75 | C101: 20 | D101: =B101/1000*C101 -> 1.5
A102: Масло растительное | B102: 3 | C102: 140 | D102: =C102/1000*B102 -> 0.42
A103: Запеканта картофельная с мясом | B103: 180
A104: Говядина (котлетное мясо) | B104: 63 | C104: 440 | D104: 27.72
A105: Масло растительное | B105: 5 | C105: 140 | D105: 0.7
A106: Масло сливочное | B106: 11 | C106: 530 | D106: 5.83
A107: Сухари панировочные | B107: 3 | C107: 100 | D107: 0.3
A108: Лук репчатый | B108: 15 | C108: 30 | D108: 0.45
A109: Картофель | B109: 230 | C109: 25 | D109: 5.75
A110: Соль | B110: 1 | C110: 16 | D110: 0.016
A111: Чай с лимоном | B111: 200/15/7
A112: Чай | B112: 1 | C112: 688 | D112: 0.688
A113: Сахар | B113: 15 | C113: 80 | D113: 1.2
A114: Лимон | B114: 8 | C114: 150 | D114: 1.2
A115: Вода | B115: 150 | D115: 0
A116: Хлеб пшеничный | B116: 30 | C116: 60 | D116: 1.8
A117: Хлеб ржано-пшеничный | B117: 20 | C117: 51 | D117: 1.02
A118: Стоимость пятница | D118: =SUM(D99:D117) -> 62.844
A119: Суббота
A120: Салат из свежих огурцов с маслом | B120: 60
A121: Огурцы свежие | B121: 58.14 | C121: 80 | D121: =C121/1000*B121 -> 4.6512
A122: Масло растительное | B122: 3.60 | C122: 140 | D122: =C122/1000*B122 -> 0.504
A123: Котлеты рубленные из птицы | B123: 90
A124: Грудка куриная | B124: 77 | C124: 245 | D124: =C124/1000*B124 -> 18.865
A125: Хлеб пшеничный | B125: 14 | C125: 60 | D125: 0.84
A126: Молоко | B126: 19 | C126: 62 | D126: 1.178
A127: Сухари панировочные | B127: 8 | C127: 100 | D127: 0.8
A128: Масло растительное | B128: 5 | C128: 140 | D128: 0.7
A129: Масло сливочное | B129: 2 | C129: 530 | D129: 1.06
A130: Соль | B130: 1 | C130: 16 | D130: 0.016
A131: Рис отварной | B131: 150
A132: Рис | B132: 55 | C132: 75 | D132: 4.125
A133: Масло сливочное | B133: 7 | C133: 530 | D133: 3.71
A134: Соль | B134: 1 | C134: 16 | D134: 0.016
A135: Чай с сахаром | B135: 200/15
A136: Чай | B136: 1 | C136: 688 | D136: 0.688
A137: Сахар | B137: 15 | C137: 80 | D137: 1.2
A138: Вода | B138: 150 | D138: 0
A139: Хлеб пшеничный | B139: 30 | C139: 60 | D139: 1.8
A140: Хлеб ржано-пшеничный | B140: 20 | C140: 51 | D140: 1.02
A141: Стоимость суббота | D141: =SUM(D121:D140) -> 41.1732
A142: Итого за 2 недели | D142: ='1 неделя'!D24+'1 неделя'!D46+'1 неделя'!D73+'1 неделя'!D102+'1 неделя'!D127+'1 неделя'!D152+'2 неделя'!D25+'2 неделя'!D44+'2 неделя'!D73+'2 неделя'!D96+'2 неделя'!D118+'2 неделя'!D141 -> 653.61662
